bitfinex/quotes_BTCUSD_20240826
["timestamp","ask_amount","ask_price","bid_price","bid_amount"]
[1724682530199,0.00290861,63611.0,63610.0,1.88019361]
[1724682530430,0.00290861,63611.0,63610.0,1.89199788]
[1724682530972,0.00290861,63611.0,63610.0,1.91499788]
[1724682531799,0.00290861,63611.0,63610.0,1.90319361]
[1724682532222,0.00290861,63611.0,63610.0,1.40367861]
[1724682534021,0.00290861,63611.0,63610.0,1.4154824]
[1724682534236,0.00290861,63611.0,63610.0,1.40367861]
[1724682534375,0.00290861,63611.0,63610.0,1.72989737]
[1724682534586,0.00290861,63611.0,63610.0,1.40367861]
[1724682535437,0.00290861,63611.0,63610.0,1.72989696]
[1724682535586,0.00290861,63611.0,63610.0,2.04279696]
[1724682536036,0.00290861,63611.0,63610.0,1.72838196]
[1724682536243,0.00290861,63611.0,63610.0,1.72838204]
[1724682537255,0.00290861,63611.0,63610.0,2.04279704]
[1724682539323,0.00290861,63611.0,63610.0,2.03099361]
[1724682541326,0.00290861,63611.0,63610.0,1.71657861]
[1724682541984,0.00290861,63611.0,63610.0,2.03099361]
[1724682542193,0.00290861,63611.0,63610.0,2.34540861]
[1724682542415,0.00290861,63611.0,63610.0,2.53000861]
[1724682542639,0.46876099,63633.0,63632.0,1.100074]
[1724682542971,0.46876099,63633.0,63632.0,1.37925201]
[1724682543283,0.3272,63642.0,63639.0,0.157135]
[1724682543391,0.3272,63642.0,63640.0,0.180133]
[1724682543820,0.3272,63642.0,63641.0,0.62757101]
[1724682544055,0.3314,63647.0,63646.0,0.157119]
[1724682544254,0.3314,63647.0,63637.0,0.157139]
[1724682544501,0.3314,63647.0,63627.0,0.32469622]
[1724682544502,0.3314,63645.0,63638.0,0.123]
[1724682544701,0.00392864,63646.0,63638.0,0.1]
[1724682544702,0.33532878,63644.0,63638.0,0.1]
[1724682544916,0.3314,63644.0,63638.0,0.1]
[1724682545119,0.00392872,63643.0,63638.0,0.1]
[1724682545290,0.3314,63642.0,63638.0,0.1]
[1724682545465,0.3314,63642.0,63630.0,0.314315]
[1724682545466,0.3314,63642.0,63632.0,0.157153]
[1724682545669,0.00392902,63641.0,63633.0,0.1]
[1724682545872,0.00392902,63641.0,63633.0,0.257149]
[1724682546127,0.1954,63640.0,63633.0,0.1]
[1724682546461,0.00392902,63641.0,63611.0,0.314407]
[1724682546462,0.1954,63636.0,63611.0,0.314407]
[1724682546644,0.1954,63636.0,63623.0,0.157174]
[1724682546645,0.3314,63634.0,63623.0,0.157174]
[1724682546794,0.00392951,63633.0,63625.0,0.15717]
[1724682546998,0.33532944,63633.0,63623.0,0.157175]
[1724682547351,0.33532944,63633.0,63621.0,0.314361]
[1724682547541,0.33532944,63633.0,63623.0,0.157174]
[1724682547746,0.1906,63632.0,63618.0,0.01509105]
[1724682547946,0.41035124,63641.0,63618.0,0.01509105]
[1724682547947,0.3024,63624.0,63618.0,0.01509105]
[1724682548145,0.00393012,63623.0,63613.0,0.157199]
[1724682548303,0.00393012,63623.0,63614.0,0.31337401]
[1724682548505,0.00393012,63623.0,63614.0,0.15617801]
[1724682548751,0.00393012,63623.0,63610.0,0.17351277]
[1724682548752,0.332,63621.0,63610.0,0.17351277]
[1724682548955,0.332,63621.0,63613.0,0.314399]
[1724682549168,0.332,63621.0,63617.0,0.15719]
[1724682549370,0.332,63621.0,63614.0,0.15617801]
[1724682549574,0.332,63621.0,63618.0,0.157187]
[1724682549770,0.332,63621.0,63616.0,0.314386]
[1724682549992,0.332,63621.0,63617.0,0.17917801]
[1724682550199,0.334,63621.0,63620.0,0.157183]
[1724682550450,0.334,63621.0,63620.0,0.123]
[1724682550858,0.334,63621.0,63620.0,0.280183]
[1724682551064,0.49218,63621.0,63620.0,0.1]
[1724682551324,0.314383,63617.0,63610.0,0.01630777]
[1724682551530,0.157205,63611.0,63610.0,0.000825]
[1724682551693,0.79594702,63611.0,63610.0,0.000825]
[1724682552134,1.30475802,63611.0,63610.0,0.000825]
[1724682552875,1.93347871,63611.0,63610.0,0.000825]
[1724682553066,0.1838,63600.0,63593.0,0.000826]
[1724682553295,0.655047,63594.0,63593.0,0.000826]
[1724682553506,0.4978,63594.0,63593.0,0.000826]
[1724682554339,0.655047,63594.0,63593.0,0.000826]
[1724682554538,0.4978,63594.0,63593.0,0.000826]
[1724682555374,0.660047,63594.0,63593.0,0.000826]
[1724682555571,0.668047,63594.0,63593.0,0.001826]
[1724682555816,0.5108,63594.0,63593.0,0.001826]
[1724682555971,0.5028,63594.0,63593.0,0.000826]
[1724682556402,0.5078,63594.0,63593.0,0.000826]
[1724682556773,0.665047,63594.0,63593.0,0.000826]
[1724682556970,0.5078,63594.0,63593.0,0.000826]
[1724682557217,0.655047,63594.0,63593.0,0.000826]
[1724682557626,0.5058,63594.0,63593.0,0.000826]
[1724682558046,0.663047,63594.0,63593.0,0.000826]
[1724682558278,0.97335274,63594.0,63593.0,0.000826]
[1724682558478,1.28784774,63594.0,63593.0,0.000826]
[1724682558736,1.29084774,63594.0,63593.0,0.000826]
[1724682559343,0.97635274,63594.0,63593.0,0.000826]
[1724682559741,1.76352075,63594.0,63593.0,0.000826]
[1724682560415,1.44902575,63594.0,63593.0,0.000826]
[1724682560602,0.50461074,63594.0,63593.0,0.000826]
[1724682560807,0.49761074,63594.0,63593.0,0.000826]
[1724682561023,0.51161074,63594.0,63593.0,0.000826]
[1724682561252,0.51161074,63594.0,63593.0,0.001826]
[1724682561253,0.51961074,63594.0,63593.0,0.001826]
[1724682561446,0.51161074,63594.0,63593.0,0.000826]
[1724682561826,0.96935274,63594.0,63593.0,0.000826]
[1724682562066,0.66685774,63594.0,63593.0,0.000826]
[1724682562281,0.50961074,63594.0,63593.0,0.000826]
[1724682562698,0.66685774,63594.0,63593.0,0.000826]
[1724682562902,1.13853075,63594.0,63593.0,0.000826]
[1724682563107,1.46602575,63594.0,63593.0,0.001826]
[1724682563308,1.46502575,63594.0,63593.0,0.001826]
[1724682563504,0.67885774,63594.0,63593.0,0.001826]
[1724682563702,0.52161074,63594.0,63593.0,0.001826]
[1724682563955,0.67885774,63594.0,63593.0,0.001826]
[1724682564186,1.46602575,63594.0,63593.0,0.001826]
[1724682564393,1.30784774,63594.0,63593.0,0.001826]
[1724682564597,0.99335274,63594.0,63593.0,0.001826]
[1724682565241,0.67885774,63594.0,63593.0,0.001826]
[1724682565858,1.30784774,63594.0,63593.0,0.001826]
[1724682566266,1.78052075,63594.0,63593.0,0.001826]
[1724682567158,0.024,63594.0,63593.0,0.001826]
[1724682567366,0.024,63594.0,63593.0,0.94425401]
[1724682567595,0.024,63594.0,63593.0,1.67105401]
[1724682567800,0.024,63594.0,63593.0,1.37955401]
[1724682568218,0.012,63594.0,63593.0,1.06505401]
[1724682568638,0.024,63594.0,63593.0,1.37955401]
[1724682569072,0.024,63594.0,63593.0,1.69405401]
[1724682569253,0.012,63594.0,63593.0,1.69305401]
[1724682569486,0.012,63594.0,63593.0,1.70795226]
[1724682569692,0.013,63594.0,63593.0,1.40045226]
[1724682569897,0.001,63594.0,63593.0,1.40045226]
[1724682570006,0.001,63594.0,63593.0,0.77365226]
[1724682570227,0.002,63594.0,63593.0,0.77765226]
[1724682570454,0.002,63594.0,63593.0,1.09215226]
[1724682572941,0.002,63594.0,63593.0,1.40665226]
[1724682573543,0.002,63594.0,63593.0,1.71095226]
[1724682573744,0.002,63594.0,63593.0,1.90605226]
[1724682573987,0.002,63594.0,63593.0,2.22055226]
[1724682575049,0.002,63594.0,63593.0,1.90605226]
[1724682575597,0.002,63594.0,63593.0,2.22055226]
[1724682576200,0.002,63594.0,63593.0,1.90605226]
[1724682577536,0.002,63594.0,63593.0,0.77765226]
[1724682578097,0.002,63594.0,63593.0,1.09215226]
[1724682578302,0.002,63594.0,63593.0,1.40665226]
[1724682578517,0.002,63594.0,63593.0,1.71645226]
[1724682579979,0.002,63594.0,63593.0,2.03095226]
[1724682580243,0.002,63594.0,63593.0,2.35932424]
[1724682580855,0.002,63594.0,63593.0,2.35232424]
[1724682581065,0.00090751,63610.0,63609.0,0.15721]
[1724682581267,0.00090751,63610.0,63609.0,0.49463]
[1724682581696,0.00090751,63610.0,63609.0,0.96522801]
[1724682582114,0.00090751,63610.0,63609.0,1.06522801]
[1724682582329,0.27150751,63619.0,63618.0,0.157188]
[1724682582741,0.27150751,63619.0,63616.0,0.314384]
[1724682582945,0.27150751,63619.0,63618.0,0.157188]
[1724682583177,0.1909,63622.0,63618.0,0.314376]
[1724682583407,0.1909,63628.0,63627.0,0.157165]
[1724682583647,0.1909,63628.0,63619.0,0.17917801]
[1724682583648,0.1909,63628.0,63619.0,0.123]
[1724682583908,0.1909,63628.0,63621.0,0.15718]
[1724682583909,0.00392965,63627.0,63621.0,0.15718]
[1724682584123,0.00392965,63627.0,63618.0,0.315374]
[1724682584124,0.157173,63624.0,63618.0,0.001]
[1724682584325,0.00393011,63623.0,63615.0,0.1]
[1724682584729,0.00393011,63623.0,63618.0,0.004]
[1724682585365,0.3198,63622.0,63618.0,0.005]
[1724682585565,0.0039301,63621.0,63618.0,0.004]
[1724682585979,0.3022,63618.0,63616.0,0.1]
[1724682586190,0.3022,63618.0,63611.0,0.01522743]
[1724682586191,0.30613013,63618.0,63611.0,0.01522743]
[1724682586395,0.3022,63618.0,63612.0,0.023]
[1724682586643,0.3167,63614.0,63611.0,0.1]
[1724682586846,0.00393052,63613.0,63609.0,0.1]
[1724682587187,0.00393052,63613.0,63606.0,0.01535705]
[1724682587389,0.00393052,63613.0,63605.0,0.157219]
[1724682587584,0.3167,63614.0,63602.0,0.314453]
[1724682587800,0.3167,63614.0,63609.0,0.157209]
[1724682588001,0.3167,63614.0,63603.0,0.15617801]
[1724682588002,0.3167,63614.0,63610.0,0.157206]
[1724682589336,0.3167,63614.0,63609.0,0.31442]
[1724682589519,0.1861,63619.0,63609.0,0.31442]
[1724682589520,0.3029,63618.0,63610.0,0.123]
[1724682589831,0.3029,63618.0,63614.0,0.157198]
[1724682589993,0.3029,63618.0,63610.0,0.123]
[1724682590191,0.001,63614.0,63610.0,0.123]
[1724682590396,0.001,63614.0,63610.0,0.1]
[1724682590598,0.00393027,63617.0,63608.0,0.157212]
[1724682590773,0.00393027,63617.0,63609.0,0.123]
[1724682590973,0.3106,63616.0,63609.0,0.123]
[1724682591177,0.3106,63616.0,63611.0,0.157204]
[1724682591378,0.3106,63616.0,63613.0,0.3144]
[1724682591635,0.3106,63616.0,63615.0,0.157195]
[1724682591778,0.3106,63616.0,63609.0,0.27917801]
[1724682591988,0.0039303,63615.0,63610.0,0.314415]
[1724682592185,0.0039303,63615.0,63611.0,0.180203]
[1724682592386,0.3126,63616.0,63611.0,0.180203]
[1724682592589,0.3126,63616.0,63612.0,0.157202]
[1724682592807,0.3126,63616.0,63613.0,0.023]
[1724682593011,0.3126,63616.0,63613.0,0.1802]
[1724682593212,0.002,63616.0,63615.0,0.785977]
[1724682593415,0.002,63616.0,63615.0,1.06515501]
[1724682593638,0.004,63617.0,63616.0,0.471579]
[1724682593791,0.305,63625.0,63624.0,0.157173]
[1724682594195,0.305,63625.0,63622.0,0.471528]
[1724682594403,0.305,63625.0,63622.0,0.157176]
[1724682594603,0.305,63625.0,63624.0,0.157173]
[1724682594846,0.305,63625.0,63621.0,0.314359]
[1724682595050,0.305,63625.0,63623.0,0.157173]
[1724682595283,0.307,63625.0,63623.0,0.157173]
[1724682595453,0.307,63625.0,63618.0,0.314373]
[1724682595663,0.307,63625.0,63619.0,0.023]
[1724682595664,0.00392976,63624.0,63619.0,0.023]
[1724682595866,0.00392976,63624.0,63615.0,0.023]
[1724682596068,0.00392976,63624.0,63616.0,0.123]
[1724682596760,0.00392976,63624.0,63617.0,0.15719]
[1724682596985,0.00090751,63642.0,63625.0,0.3123]
[1724682597229,0.00090751,63642.0,63635.0,0.471438]
[1724682597230,0.46876099,63636.0,63635.0,0.471438]
[1724682597484,0.3199,63641.0,63632.0,0.157152]
[1724682597737,0.00392896,63640.0,63635.0,0.1]
[1724682597967,0.00392896,63640.0,63636.0,0.1]
[1724682598210,0.3199,63641.0,63636.0,0.257143]
[1724682598488,0.3199,63641.0,63636.0,0.1]
[1724682599012,0.00090751,63642.0,63639.0,0.4948]
[1724682599243,0.00090751,63642.0,63641.0,0.785655]
[1724682599491,0.00090751,63642.0,63641.0,0.808655]
[1724682599727,0.00090751,63642.0,63641.0,1.69335701]
[1724682599918,0.00090751,63642.0,63641.0,2.02675895]
[1724682600129,0.00090751,63642.0,63641.0,2.42074497]
[1724682600569,0.00090751,63642.0,63641.0,1.79222097]
[1724682600773,0.00090751,63642.0,63641.0,0.123]
[1724682600977,0.00090751,63642.0,63641.0,0.43630901]
[1724682601185,0.00090751,63642.0,63641.0,1.09083301]
[1724682601591,0.00090751,63642.0,63641.0,1.80288297]
[1724682601794,0.00090751,63642.0,63641.0,1.80188297]
[1724682602144,0.00090751,63642.0,63641.0,1.78888297]
[1724682602346,0.00090751,63642.0,63641.0,1.47462097]
[1724682602714,0.00090751,63642.0,63641.0,1.78888297]
[1724682603348,0.00090751,63642.0,63641.0,1.80088297]
[1724682603752,0.00090751,63642.0,63641.0,1.81288297]
[1724682604194,0.00090751,63642.0,63641.0,1.49862097]
[1724682604401,0.00090751,63642.0,63641.0,0.77457101]
[1724682604630,0.00090751,63642.0,63641.0,0.76257101]
[1724682605042,0.00090751,63642.0,63641.0,0.46130901]
[1724682605239,0.00090751,63642.0,63641.0,0.619393]
[1724682605473,0.19880751,63642.0,63641.0,0.025]
[1724682605686,0.68166428,63642.0,63641.0,0.025]
[1724682605905,0.52453628,63642.0,63641.0,0.025]
[1724682606110,0.68166428,63642.0,63641.0,0.025]
[1724682606326,0.99592128,63642.0,63641.0,0.025]
[1724682606543,0.99592128,63642.0,63641.0,0.013]
[1724682606990,0.99592128,63642.0,63627.0,0.4716]
[1724682606991,0.3216,63641.0,63627.0,0.4716]
[1724682607210,0.478737,63639.0,63627.0,0.4716]
[1724682607422,0.3216,63639.0,63627.0,0.62777801]
[1724682607634,0.00690751,63642.0,63638.0,0.157138]
[1724682607844,0.00690751,63642.0,63641.0,0.471393]
[1724682608072,0.00690751,63642.0,63641.0,0.157131]
[1724682608287,0.00690751,63642.0,63641.0,0.001]
[1724682608288,0.00390751,63642.0,63641.0,0.001]
[1724682608693,0.00390751,63642.0,63641.0,0.158131]
[1724682608906,0.00390751,63642.0,63641.0,0.511131]
[1724682609118,0.00390751,63642.0,63641.0,0.495393]
[1724682609970,0.32660751,63642.0,63641.0,0.024]
[1724682610176,0.50760751,63642.0,63641.0,0.001]
[1724682610388,0.32960751,63642.0,63641.0,0.472393]
[1724682610621,0.00690751,63642.0,63641.0,0.96583301]
[1724682610831,0.00690751,63642.0,63641.0,1.28009501]
[1724682611048,0.00690751,63642.0,63641.0,1.59209501]
[1724682611268,0.00690751,63642.0,63641.0,0.75257101]
[1724682611269,0.01090751,63642.0,63641.0,0.75257101]
[1724682611508,0.52600751,63642.0,63641.0,0.102]
[1724682611955,0.52200751,63642.0,63641.0,0.101]
[1724682612382,0.52200751,63642.0,63641.0,0.002]
[1724682612598,0.52600751,63642.0,63641.0,0.102]
[1724682613034,0.52000751,63642.0,63641.0,0.101]
[1724682613453,0.52600751,63642.0,63641.0,0.102]
[1724682613633,0.52000751,63642.0,63641.0,0.001]
[1724682614067,0.52200751,63642.0,63641.0,0.001]
[1724682614489,0.52400751,63642.0,63640.0,0.1]
[1724682614701,0.52500751,63642.0,63640.0,0.1]
[1724682615123,0.52500751,63642.0,63637.0,0.023]
[1724682615124,0.52500751,63642.0,63639.0,0.257135]
[1724682615330,0.52500751,63642.0,63639.0,0.1]
[1724682615545,0.34480751,63642.0,63641.0,0.785655]
[1724682615750,0.00790751,63642.0,63641.0,0.594393]
[1724682616175,0.00790751,63642.0,63641.0,0.133]
[1724682616394,0.00090751,63642.0,63641.0,0.133]
[1724682616611,0.00090751,63642.0,63641.0,0.604393]
[1724682616818,0.00190751,63642.0,63641.0,0.604393]
[1724682617034,0.00090751,63642.0,63641.0,0.918655]
[1724682617465,0.00390751,63642.0,63641.0,1.07483301]
[1724682617695,0.00390751,63642.0,63641.0,1.69679501]
[1724682617904,0.00190751,63642.0,63641.0,1.69679501]
[1724682618365,0.00390751,63642.0,63641.0,1.69679501]
[1724682618749,0.00190751,63642.0,63641.0,1.69679501]
[1724682618987,0.00190751,63642.0,63641.0,2.01105701]
[1724682619205,0.05584336,63674.0,63669.0,0.78531]
[1724682619206,0.1908,63670.0,63669.0,0.78531]
[1724682619457,0.3271,63671.0,63670.0,0.471178]
[1724682619653,0.009086,63672.0,63671.0,0.471171]
[1724682619859,0.009086,63672.0,63671.0,0.785285]
[1724682620066,0.004086,63672.0,63671.0,1.27857701]
[1724682620272,0.004086,63672.0,63671.0,1.42603384]
[1724682621346,0.004086,63672.0,63671.0,1.11791984]
[1724682621551,0.004086,63672.0,63671.0,0.1]
[1724682621753,0.330586,63672.0,63671.0,0.157057]
[1724682621964,0.330586,63672.0,63671.0,0.263057]
[1724682622181,0.004086,63672.0,63671.0,0.44223501]
[1724682622424,0.004086,63672.0,63671.0,1.4290554]
[1724682622820,0.004086,63672.0,63671.0,1.1149414]
[1724682623239,0.004086,63672.0,63671.0,1.1219414]
[1724682623657,0.004086,63672.0,63671.0,0.607171]
[1724682623837,0.004086,63672.0,63671.0,0.293057]
[1724682624073,0.004086,63672.0,63671.0,0.44923501]
[1724682624283,0.004086,63672.0,63671.0,1.1219414]
[1724682624721,0.004086,63672.0,63671.0,1.4360554]
[1724682625295,0.004086,63672.0,63671.0,1.39157701]
[1724682625456,0.004086,63672.0,63671.0,1.07746301]
[1724682625658,0.004086,63672.0,63671.0,0.113]
[1724682625659,0.330586,63672.0,63671.0,0.113]
[1724682625863,0.513786,63672.0,63671.0,0.113]
[1724682626493,0.67084,63672.0,63671.0,0.013]
[1724682626692,1.299058,63672.0,63671.0,0.013]
[1724682627092,0.5097,63659.0,63646.0,0.4716]
[1724682627272,0.3265,63654.0,63647.0,0.46876099]
[1724682627421,0.00392819,63653.0,63636.0,0.314286]
[1724682627826,0.5097,63652.0,63636.0,0.314285]
[1724682628170,0.5097,63652.0,63638.0,0.157138]
[1724682628171,0.3265,63650.0,63638.0,0.157138]
[1724682628374,0.00392851,63649.0,63639.0,0.31427]
[1724682628614,0.3265,63650.0,63646.0,0.001]
[1724682628819,0.0039284,63649.0,63646.0,0.001]
[1724682629424,0.3265,63650.0,63646.0,0.001]
[1724682629642,0.0039284,63649.0,63646.0,0.001]
[1724682629850,0.471349,63647.0,63646.0,0.001]
[1724682630046,0.304,63647.0,63646.0,0.001]
[1724682630249,0.30792874,63647.0,63646.0,0.001]
[1724682630456,0.304,63647.0,63646.0,0.001]
[1724682630584,0.304,63647.0,63641.0,0.01]
[1724682630845,0.00392877,63646.0,63641.0,0.011]
[1724682631693,0.00392877,63646.0,63641.0,0.01]
[1724682632097,0.00892877,63646.0,63641.0,0.01]
[1724682632726,0.005,63646.0,63645.0,0.157121]
[1724682632930,0.005,63646.0,63645.0,0.494364]
[1724682633344,0.304,63647.0,63645.0,0.023]
[1724682633553,0.304,63647.0,63641.0,0.01]
[1724682633554,0.304,63647.0,63642.0,0.023]
[1724682633755,0.00892827,63646.0,63643.0,0.314248]
[1724682633954,0.007,63646.0,63645.0,0.157121]
[1724682634182,0.00590751,63646.0,63645.0,0.180121]
[1724682634387,0.00090751,63646.0,63645.0,0.494364]
[1724682634982,0.00090751,63646.0,63645.0,0.180121]
[1724682635245,0.00290751,63646.0,63645.0,0.023]
[1724682635401,0.00290751,63646.0,63644.0,0.157122]
[1724682635602,0.00290751,63646.0,63645.0,0.157121]
[1724682635808,0.00290751,63646.0,63645.0,0.94178501]
[1724682635982,0.00290751,63646.0,63645.0,1.70382801]
[1724682636582,0.00290751,63646.0,63645.0,1.71920015]
[1724682636966,0.00390751,63646.0,63645.0,1.71920015]
[1724682637233,0.00390751,63646.0,63645.0,1.08715715]
[1724682637440,0.00090751,63646.0,63645.0,1.08715715]
[1724682637862,0.00090751,63646.0,63645.0,1.09415715]
[1724682640263,0.00090751,63646.0,63645.0,1.40840015]
[1724682640473,0.00090751,63646.0,63645.0,1.09415715]
[1724682640847,0.30130751,63659.0,63653.0,0.1571]
[1724682641081,0.30130751,63659.0,63645.0,0.30855015]
[1724682641307,0.30130751,63659.0,63658.0,0.785445]
[1724682641520,0.004086,63672.0,63665.0,0.471216]
[1724682641737,0.194086,63672.0,63671.0,0.157057]
[1724682641963,0.194086,63672.0,63671.0,0.471171]
[1724682641964,0.004086,63672.0,63671.0,0.471171]
[1724682642191,0.004086,63672.0,63665.0,0.15617801]
[1724682642395,0.0039268,63671.0,63665.0,0.15617801]
[1724682642617,0.0039268,63671.0,63665.0,0.31324901]
[1724682642817,0.0039268,63671.0,63666.0,0.157069]
[1724682643018,0.0039268,63671.0,63667.0,0.157067]
[1724682643462,0.0039268,63671.0,63666.0,0.314139]
[1724682643663,0.0039268,63671.0,63669.0,0.15706]
[1724682643881,0.004086,63672.0,63671.0,0.471171]
[1724682644099,0.004086,63672.0,63671.0,0.65034901]
[1724682644306,0.004086,63672.0,63671.0,1.06446301]
[1724682644509,0.004086,63672.0,63671.0,0.75034901]
[1724682644721,0.004086,63672.0,63671.0,0.43623501]
[1724682644968,0.004086,63672.0,63671.0,0.75034901]
[1724682645195,0.004086,63672.0,63671.0,1.06446301]
[1724682645602,0.004086,63672.0,63671.0,1.37857701]
[1724682646859,0.004086,63672.0,63671.0,2.01609101]
[1724682647274,0.004086,63672.0,63671.0,2.02248829]
[1724682647679,0.004086,63672.0,63671.0,2.01609101]
[1724682648127,0.004086,63672.0,63671.0,2.53500501]
[1724682648351,0.46876099,63693.0,63685.0,0.157022]
[1724682648605,0.46876099,63693.0,63685.0,2.11152297]
[1724682648819,0.00907501,63706.0,63685.0,2.42556797]
[1724682649028,0.00907501,63706.0,63685.0,2.42656797]
[1724682649912,0.00907501,63706.0,63685.0,2.42556797]
[1724682650111,0.00907501,63706.0,63685.0,2.42656797]
[1724682650523,0.00907501,63706.0,63685.0,2.03978001]
[1724682651153,0.00907501,63706.0,63685.0,2.04520319]
[1724682651355,0.1891,63696.0,63685.0,1.07071319]
[1724682651559,0.1891,63696.0,63685.0,1.08471319]
[1724682652634,0.31077501,63686.0,63685.0,0.14342318]
[1724682652813,0.31077501,63686.0,63685.0,0.50049018]
[1724682653054,0.00907501,63686.0,63685.0,0.74266819]
[1724682653461,0.00907501,63686.0,63685.0,0.75666819]
[1724682653667,0.00907501,63686.0,63685.0,1.07071319]
[1724682653870,0.00907501,63686.0,63685.0,1.05671319]
[1724682654069,0.00907501,63686.0,63685.0,0.74266819]
[1724682654278,0.00907501,63686.0,63685.0,0.76066819]
[1724682654483,0.00907501,63686.0,63685.0,0.28644518]
[1724682654693,0.00907501,63686.0,63672.0,0.72389296]
[1724682654694,0.49987501,63686.0,63673.0,0.314103]
[1724682654902,0.00392603,63685.0,63675.0,0.157046]
[1724682655125,0.50087501,63686.0,63681.0,0.157031]
[1724682655328,0.50087501,63686.0,63677.0,0.314084]
[1724682655329,0.31177501,63686.0,63685.0,0.471067]
[1724682655539,0.01007501,63686.0,63685.0,0.94129001]
[1724682656381,0.00907501,63686.0,63685.0,0.96429001]
[1724682656599,0.00907501,63686.0,63685.0,1.06429001]
[1724682656806,0.00907501,63686.0,63685.0,1.06729001]
[1724682657018,0.00907501,63686.0,63685.0,1.06429001]
[1724682657430,0.00907501,63686.0,63685.0,1.07029001]
[1724682657663,0.00907501,63686.0,63685.0,1.37833501]
[1724682658090,0.00907501,63686.0,63685.0,1.70803501]
[1724682658297,0.00907501,63686.0,63685.0,1.71484349]
[1724682658502,0.00907501,63686.0,63685.0,2.02888849]
[1724682658713,0.00907501,63686.0,63685.0,2.05064067]
[1724682659131,0.00907501,63686.0,63685.0,2.04364067]
[1724682659357,0.00907501,63686.0,63685.0,2.04464067]
[1724682659562,0.00907501,63686.0,63685.0,2.23964067]
[1724682660010,0.00907501,63686.0,63685.0,2.23164067]
[1724682660220,0.00907501,63686.0,63685.0,2.23964067]
[1724682660426,0.00907501,63686.0,63685.0,2.23164067]
[1724682660628,0.00607501,63686.0,63685.0,2.23964067]
[1724682660836,0.00607501,63686.0,63685.0,2.25264067]
[1724682661045,0.00607501,63686.0,63685.0,2.25364067]
[1724682661250,0.00607501,63686.0,63685.0,2.22383219]
[1724682661483,0.00607501,63686.0,63685.0,2.25183219]
[1724682661689,0.00607501,63686.0,63685.0,2.25907169]
[1724682661889,0.00607501,63686.0,63685.0,2.23107169]
[1724682662099,0.00607501,63686.0,63685.0,2.23207169]
[1724682662311,0.00607501,63686.0,63685.0,2.24607169]
[1724682662750,0.00607501,63686.0,63685.0,2.56011669]
[1724682663186,0.00907501,63697.0,63685.0,2.56011669]
[1724682663187,0.00907501,63697.0,63696.0,1.82274696]
[1724682663395,0.00907501,63697.0,63696.0,2.07892497]
[1724682663599,0.00907501,63697.0,63696.0,2.10192497]
[1724682664671,0.00907501,63697.0,63696.0,2.13097599]
[1724682664874,0.00907501,63697.0,63696.0,2.14497599]
[1724682665332,0.00907501,63697.0,63696.0,0.79321503]
[1724682665750,0.00907501,63697.0,63696.0,1.10720603]
[1724682666378,0.01659072,63697.0,63696.0,1.42119703]
[1724682666799,0.00907501,63697.0,63696.0,1.42119703]
[1724682667003,0.00907501,63697.0,63696.0,1.83098499]
[1724682667623,0.00907501,63697.0,63696.0,1.42119703]
[1724682668053,0.00907501,63697.0,63696.0,1.83098499]
[1724682669371,0.00907501,63697.0,63696.0,1.51699399]
[1724682669584,0.20037501,63697.0,63696.0,0.29922903]
[1724682669807,0.20037501,63697.0,63696.0,0.77021503]
[1724682670053,0.98094122,63697.0,63696.0,0.028]
[1724682670275,1.29492722,63697.0,63696.0,0.028]
[1724682670486,1.29492722,63697.0,63662.0,0.40978796]
[1724682670487,0.157038,63679.0,63662.0,0.40978796]
[1724682670726,0.628067,63688.0,63675.0,0.46876099]
[1724682670727,0.3266,63677.0,63675.0,0.46876099]
[1724682670942,0.3079,63675.0,63663.0,0.15617801]
[1724682671146,0.00392663,63674.0,63667.0,0.157066]
[1724682671352,0.3079,63673.0,63668.0,0.31324201]
[1724682671601,0.00392662,63672.0,63671.0,0.157057]
[1724682671808,0.314018,63691.0,63671.0,0.15617801]
[1724682671809,0.3079,63681.0,63671.0,0.15617801]
[1724682672049,0.3079,63681.0,63670.0,0.40978796]
[1724682672050,0.3079,63681.0,63680.0,0.471105]
[1724682672257,0.3079,63681.0,63680.0,1.25542301]
[1724682672469,0.3079,63681.0,63680.0,0.94135301]
[1724682673110,0.3079,63690.0,63688.0,0.157013]
[1724682673328,0.3079,63690.0,63689.0,0.15617801]
[1724682673538,0.3079,63696.0,63689.0,0.27917801]
[1724682673743,0.3079,63696.0,63695.0,0.156998]
[1724682673951,0.3079,63696.0,63695.0,0.62717201]
[1724682674160,0.3079,63696.0,63695.0,0.96416801]
[1724682674588,0.3079,63696.0,63695.0,0.65017201]
[1724682675685,0.3079,63696.0,63692.0,0.314006]
[1724682675686,0.31382485,63696.0,63692.0,0.157004]
[1724682675892,0.00392516,63695.0,63693.0,0.023]
[1724682676346,0.00392516,63695.0,63664.0,0.73368796]
[1724682676347,0.3282,63691.0,63664.0,0.73368796]
[1724682676555,0.3282,63689.0,63678.0,0.157039]
[1724682676776,0.3282,63689.0,63678.0,0.15617801]
[1724682677197,0.3282,63689.0,63679.0,0.157036]
[1724682677407,0.1951,63685.0,63670.0,0.314117]
[1724682677613,0.1951,63685.0,63671.0,0.15617801]
[1724682677614,0.3326,63683.0,63671.0,0.15617801]
[1724682677822,0.3326,63681.0,63672.0,0.314108]
[1724682678031,0.3326,63681.0,63672.0,0.47028601]
[1724682678237,0.3326,63681.0,63675.0,0.157046]
[1724682678468,0.3326,63681.0,63676.0,0.25617801]
[1724682678681,0.00392606,63680.0,63676.0,0.257043]
[1724682678898,0.1951,63678.0,63676.0,0.1]
[1724682679116,0.5277,63676.0,63671.0,0.001]
[1724682679360,0.5277,63676.0,63659.0,0.000825]
[1724682679361,0.489684,63660.0,63659.0,0.000825]
[1724682679584,1.40874096,63660.0,63659.0,0.000825]
[1724682679799,1.41772999,63660.0,63659.0,0.000825]
[1724682680006,1.890077,63660.0,63659.0,0.000825]
[1724682680224,2.204246,63660.0,63659.0,0.000825]
[1724682680437,0.157119,63646.0,63635.0,0.00018917]
[1724682680690,0.40978796,63652.0,63635.0,0.00018917]